fUSD/lending_fUSD_20241001
["ID","MTS","AMOUNT","RATE_DAILY","PERIOD"]
[339620762,1727756641153,253.0,8.219e-05,2]
[339620763,1727756641335,168.4,7.854e-05,2]
[339620764,1727756641563,168.4,9.163e-05,2]
[339620765,1727756641762,276.03,9.818e-05,2]
[339620766,1727756671883,23890.0,9.817e-05,2]
[339620767,1727756675837,336.0214706,9.768e-05,2]
[339620768,1727756705359,150.0,9.888e-05,2]
[339620769,1727756711737,545.09,9.768e-05,2]
[339620770,1727756714388,150.0,9.888e-05,2]
[339620771,1727756716523,150.0,9.888e-05,2]
[339620772,1727756722827,152.09843,9.888e-05,2]
[339620773,1727756722889,2049.18,9.763e-05,2]
[339620774,1727756724192,906.57,9.766e-05,2]
[339620775,1727756726303,150.0,9.888e-05,2]
[339620776,1727756731630,150.27791574,9.888e-05,2]
[339620777,1727756738645,150.75342742,9.888e-05,2]
[339620778,1727756745296,1000.0,9.766e-05,2]
[339620779,1727756745976,1416.95,9.766e-05,2]
[339620780,1727756752669,-3996.073854,0.0001019,2]
[339620781,1727756752692,-14784.4527,0.00010242,2]
[339620782,1727756752713,-229.5813,0.00010242,2]
[339620783,1727756752735,-150.0,0.00010254,2]
[339620784,1727756752755,-1300.0,0.00010342,2]
[339620785,1727756752777,-1400.0,0.00010342,2]
[339620786,1727756752799,-179.27,0.00010424,2]
[339620787,1727756752820,-150.0,0.00010437,2]
[339620788,1727756752844,-237.4,0.00010469,2]
[339620789,1727756752867,-168.4,0.00010472,2]
[339620790,1727756752888,-150.0,0.0001062,2]
[339620791,1727756752910,-499.99,0.00010652,2]
[339620792,1727756752933,-9898.3783,0.00010652,2]
[339620793,1727756752955,-268.6124,0.000107,2]
[339620794,1727756752978,-150.0,0.00010732,2]
[339620795,1727756753001,-3493.26,0.00010732,2]
[339620796,1727756753024,-26008.98,0.00010732,2]
[339620797,1727756753045,-29999.99,0.00010732,2]
[339620798,1727756753069,-150.0,0.00010734,2]
[339620799,1727756753097,-150.0,0.00010735,2]
[339620800,1727756753120,-150.0,0.0001074,2]
[339620801,1727756753143,-150.0,0.0001074,2]
[339620802,1727756753167,-150.0,0.00010745,2]
[339620803,1727756753193,-150.0,0.00010751,2]
[339620804,1727756753217,-150.0,0.00010753,2]
[339620805,1727756753239,-150.0,0.00010756,2]
[339620806,1727756753262,-150.0,0.00010757,2]
[339620807,1727756753283,-150.0,0.00010757,2]
[339620808,1727756753305,-150.0,0.00010762,2]
[339620809,1727756753326,-150.0,0.00010764,2]
[339620810,1727756753349,-150.0,0.00010765,2]
[339620811,1727756753373,-150.0,0.00010765,2]
[339620812,1727756753396,-150.0,0.00010767,2]
[339620813,1727756753418,-150.0,0.00010769,2]
[339620814,1727756753441,-150.0,0.0001077,2]
[339620815,1727756753464,-150.0,0.00010773,2]
[339620816,1727756753488,-150.0,0.00010775,2]
[339620817,1727756753511,-150.0,0.00010781,2]
[339620818,1727756753534,-150.0,0.00010781,2]
[339620819,1727756753558,-150.0,0.00010783,2]
[339620820,1727756753583,-150.0,0.00010784,2]
[339620821,1727756753604,-150.0,0.00010785,2]
[339620822,1727756753628,-150.0,0.00010787,2]
[339620823,1727756753652,-3757.85655835,0.0001079,2]
[339620824,1727756753676,-150.0,0.00010791,2]
[339620825,1727756753700,-150.0,0.00010791,2]
[339620826,1727756753724,-150.0,0.00010796,2]
[339620827,1727756753747,-150.0,0.00010796,2]
[339620828,1727756753770,-150.0,0.00010796,2]
[339620829,1727756753792,-236.0216,0.00010799,2]
[339620830,1727756753816,-125629.806,0.000108,2]
[339620831,1727756753838,-1000.0,0.000108,2]
[339620832,1727756753861,-2500.0,0.000108,2]
[339620833,1727756753886,-150.0,0.00010801,2]
[339620834,1727756753909,-150.0,0.00010801,2]
[339620835,1727756753932,-150.0,0.00010802,2]
[339620836,1727756753954,-150.0,0.00010805,2]
[339620837,1727756753977,-150.0,0.00010806,2]
[339620838,1727756754000,-150.0,0.0001081,2]
[339620839,1727756754202,-150.0,0.00010813,2]
[339620840,1727756754226,-150.0,0.00010815,2]
[339620841,1727756754249,-694.24100881,0.00010818,2]
[339620842,1727756754273,-150.0,0.00010822,2]
[339620843,1727756754296,-150.0,0.00010823,2]
[339620844,1727756754318,-150.0,0.00010824,2]
[339620845,1727756754341,-150.0,0.00010827,2]
[339620846,1727756754364,-150.0,0.00010828,2]
[339620847,1727756754388,-237.45886491,0.00010835,2]
[339620848,1727756754411,-150.0,0.00010836,2]
[339620849,1727756754434,-150.0,0.00010854,2]
[339620850,1727756754457,-150.0,0.00010856,2]
[339620851,1727756754479,-150.0,0.00010858,2]
[339620852,1727756754502,-150.0,0.00010858,2]
[339620853,1727756754524,-150.0,0.00010861,2]
[339620854,1727756754548,-150.0,0.00010861,2]
[339620855,1727756754569,-150.0,0.00010863,2]
[339620856,1727756754592,-150.0,0.00010863,2]
[339620857,1727756754616,-150.0,0.00010865,2]
[339620858,1727756754639,-150.0,0.00010868,2]
[339620859,1727756754662,-150.0,0.00010869,2]
[339620860,1727756754684,-150.0,0.00010869,2]
[339620861,1727756754707,-150.0,0.0001087,2]
[339620862,1727756754732,-150.0,0.00010872,2]
[339620863,1727756754755,-150.0,0.00010877,2]
[339620864,1727756754779,-150.0,0.00010878,2]
[339620865,1727756754803,-150.0,0.0001088,2]
[339620866,1727756754824,-150.0,0.00010882,2]
[339620867,1727756754847,-150.0,0.00010884,2]
[339620868,1727756754870,-150.0,0.00010887,2]
[339620869,1727756754896,-150.0,0.00010888,2]
[339620870,1727756754918,-150.0,0.00010888,2]
[339620871,1727756754941,-150.0,0.00010889,2]
[339620872,1727756754964,-150.0,0.00010889,2]
[339620873,1727756754987,-150.0,0.00010891,2]
[339620874,1727756755011,-150.0,0.00010891,2]
[339620875,1727756755035,-150.0,0.00010896,2]
[339620876,1727756755058,-6869.31413095,0.00010899,2]
[339620877,1727756755084,-132479.6361,0.000109,2]
[339620878,1727756755109,-5068.1881,0.000109,2]
[339620879,1727756755132,-2956.6817,0.000109,2]
[339620880,1727756755155,-792.9676259,0.000109,2]
[339620881,1727756755178,-159.33880151,0.000109,2]
[339620882,1727756755200,-1000.0,0.000109,2]
[339620883,1727756755221,-906.0,0.000109,2]
[339620884,1727756755243,-1000.0,0.000109,2]
[339620885,1727756755265,-1000.0,0.000109,2]
[339620886,1727756755287,-1000.0,0.000109,2]
[339620887,1727756755308,-1000.0,0.000109,2]
[339620888,1727756755330,-1000.0,0.000109,2]
[339620889,1727756755352,-1000.0,0.000109,3]
[339620890,1727756755372,-1000.0,0.000109,3]
[339620891,1727756755395,-1000.0,0.000109,3]
[339620892,1727756755417,-507.0,0.000109,3]
[339620893,1727756755437,-1000.0,0.000109,2]
[339620894,1727756755458,-1004.0,0.000109,2]
[339620895,1727756755478,-675.0,0.000109,2]
[339620896,1727756755498,-1000.0,0.000109,3]
[339620897,1727756755520,-200.6907088,0.000109,2]
[339620898,1727756755542,-2179.75701013,0.000109,2]
[339620899,1727756755565,-711.07783787,0.000109,2]
[339620900,1727756755588,-150.0,0.00010902,2]
[339620901,1727756755610,-150.0,0.00010908,2]
[339620902,1727756755635,-150.0,0.00010908,2]
[339620903,1727756755656,-500.0,0.00010912,2]
[339620904,1727756755679,-150.0,0.00010914,2]
[339620905,1727756755701,-150.0,0.00010926,2]
[339620906,1727756755725,-150.0,0.00010926,2]
[339620907,1727756755749,-150.0,0.00010928,2]
[339620908,1727756755771,-245.48497057,0.0001093,2]
[339620909,1727756755794,-150.0,0.0001093,2]
[339620910,1727756755817,-6869.31413088,0.00010933,2]
[339620911,1727756755839,-150.0,0.00010939,2]
[339620912,1727756755861,-150.0,0.00010941,2]
[339620913,1727756755883,-150.0,0.00010945,2]
[339620914,1727756755907,-150.0,0.0001095,2]
[339620915,1727756755930,-150.0,0.00010951,2]
[339620916,1727756755953,-150.0,0.00010952,2]
[339620917,1727756755978,-2864.21,0.00010958,2]
[339620918,1727756756000,-150.0,0.00010959,2]
[339620919,1727756756022,-158.85,0.00010959,2]
[339620920,1727756756043,-514.95,0.00010959,2]
[339620921,1727756756065,-250.0,0.00010959,2]
[339620922,1727756756091,-150.0,0.00010966,2]
[339620923,1727756756113,-150.0,0.00010969,2]
[339620924,1727756756137,-150.0,0.00010969,2]
[339620925,1727756756159,-501.02205855,0.00010973,2]
[339620926,1727756756182,-171.0532021,0.00010973,2]
[339620927,1727756756203,-500.0,0.00010973,2]
[339620928,1727756756228,-150.0,0.00010974,2]
[339620929,1727756756252,-150.0,0.00010976,2]
[339620930,1727756756275,-150.0,0.00010977,2]
[339620931,1727756756298,-150.0,0.00010978,2]
[339620932,1727756756321,-150.0,0.00010979,2]
[339620933,1727756756345,-150.0,0.00010981,2]
[339620934,1727756756368,-150.0,0.00010982,2]
[339620935,1727756756392,-150.0,0.00010985,2]
[339620936,1727756756414,-248.41098925,0.00010986,2]
[339620937,1727756756436,-150.0,0.00010986,2]
[339620938,1727756756458,-298.23634965,0.00010986,2]
[339620939,1727756756480,-272.43456797,0.00010986,2]
[339620940,1727756756503,-1000.0,0.00010987,2]
[339620941,1727756756525,-153.71,0.0001099,2]
[339620942,1727756756547,-153.71,0.0001099,2]
[339620943,1727756756571,-150.0,0.0001099,2]
[339620944,1727756756593,-150.0,0.00010994,2]
[339620945,1727756756618,-150.0,0.00010995,2]
[339620946,1727756756642,-150.0,0.00010996,2]
[339620947,1727756756666,-2864.21,0.00010999,2]
[339620948,1727756756692,-2864.21,0.00010999,2]
[339620949,1727756756716,-2864.21,0.00010999,2]
[339620950,1727756756739,-2864.21,0.00010999,2]
[339620951,1727756756764,-2864.21,0.00010999,2]
[339620952,1727756756787,-2864.21,0.00010999,2]
[339620953,1727756756810,-2864.21,0.00010999,2]
[339620954,1727756756835,-2864.21,0.00010999,2]
[339620955,1727756756860,-2864.21,0.00010999,2]
[339620956,1727756756885,-2864.21,0.00010999,2]
[339620957,1727756756909,-2864.21,0.00010999,2]
[339620958,1727756756935,-2864.21,0.00010999,2]
[339620959,1727756756958,-2864.21,0.00010999,2]
[339620960,1727756756983,-2864.21,0.00010999,2]
[339620961,1727756757006,-2864.21,0.00010999,2]
[339620962,1727756757031,-2864.21,0.00010999,2]
[339620963,1727756757054,-2864.21,0.00010999,2]
[339620964,1727756757080,-481.02026396,0.00010999,2]
[339620965,1727756757102,-289.67717741,0.00010999,2]
[339620966,1727756757128,-274527.56548339,0.00011,2]
[339620967,1727756757153,-1294865.87165014,0.00011,2]
[339620968,1727756757623,1276.11140448,6.94e-05,2]
[339620969,1727756762286,161.15070739,9e-05,2]
[339620970,1727756812463,1100.0,8.972e-05,2]
[339620971,1727756816629,1000.0,8.972e-05,2]
[339620972,1727756837414,205.0,9.8e-05,2]
[339620973,1727756853265,1158.37,8.482e-05,2]
[339620983,1727756935611,1000.0,8.972e-05,2]
[339620990,1727756998436,1100.0,8.972e-05,2]
[339621010,1727757032323,-230.16,0.00010081,2]
[339621011,1727757032333,-3878.9083,0.0001009,2]
[339621012,1727757032343,-413.65,0.00010181,2]
[339621013,1727757032352,-200.0,0.00010198,2]
[339621014,1727757032362,-810.63,0.00010217,2]
[339621015,1727757032371,-1975.26,0.00010292,2]
[339621016,1727757032380,-300.0,0.00010326,2]
[339621017,1727757032390,-1852.42,0.00010327,2]
[339621018,1727757032399,-1924.35,0.00010327,2]
[339621019,1727757032408,-1000.0,0.00010342,2]
[339621020,1727757032418,-1100.0,0.00010342,2]
[339621021,1727757032427,-250.86,0.00010422,2]
[339621022,1727757032436,-1000.0,0.000107,2]
[339621023,1727757032445,-1456.8305,0.000107,2]
[339621024,1727757032459,-1158.37,0.00010746,2]
[339621025,1727757032468,-5199.28,0.00010883,2]
[339621026,1727757032478,-392.95514373,0.000109,2]
[339621027,1727757032487,-622.19310818,0.000109,2]
[339621028,1727757032496,-350.58,0.00010939,2]
[339621029,1727757032505,-167.29,0.00010959,2]
[339621030,1727757032515,-500.0,0.00010973,2]
[339621031,1727757032524,-154.02,0.0001099,2]
[339621032,1727757032533,-150.0,0.00010997,2]
[339621033,1727757032543,-9246.38882638,0.00010998,2]
[339621034,1727757032555,-15201.6270922,0.00010998,2]
[339621035,1727757032567,-1045.44000008,0.00010998,2]
[339621037,1727757032587,-890.11270915,0.00010998,2]
[339621039,1727757032598,-16104.27583708,0.00010998,2]
[339621049,1727757038493,-174.95879954,0.00010973,2]
[339621050,1727757038503,-139.5578507,0.00010998,2]
[339621051,1727757038515,-29047.07754972,0.00010998,2]
[339621052,1727757038528,-306.42367944,0.00010998,2]
[339621053,1727757038539,-757.258615,0.00010998,2]
[339621054,1727757038676,-1618.28992769,0.00010998,2]
[339621055,1727757038685,-2500.0,0.00010999,2]
[339621056,1727757038695,-2500.0,0.00010999,2]
[339621057,1727757038704,-2500.0,0.00010999,2]
[339621059,1727757038714,-2500.0,0.00010999,2]
[339621060,1727757038723,-2500.0,0.00010999,2]
[339621061,1727757038733,-2500.0,0.00010999,2]
[339621062,1727757038743,-2185.46645272,0.00010999,2]
[339621063,1727757038752,-39342.53422299,0.00011,2]
[339621064,1727757038764,-7635.85806297,0.00011,2]
[339621066,1727757038775,-649.35606077,0.00011,2]
[339621067,1727757038787,-529.76522685,0.00011,2]
[339621068,1727757038798,-1602.55939389,0.00011,2]
[339621069,1727757038835,-803.48526565,0.00011,2]
[339621070,1727757038848,-766.51726521,0.00011,2]
[339621071,1727757038860,-1190.31632735,0.00011,2]
[339621072,1727757038871,-561.711231,0.00011,2]
[339621073,1727757040344,-252.02583929,0.00011,2]
[339621074,1727757040355,-7659.00000018,0.00011,2]
[339621075,1727757040402,-76270.65384555,0.00011,2]
[339621076,1727757040412,-126148.30414348,0.00011,2]
[339621077,1727757040464,-385.95255073,0.00011,2]
[339621078,1727757040476,-294.44676233,0.00011,2]
[339621079,1727757040487,-1600.0,0.00011,2]
[339621080,1727757040499,-2771.40776793,0.00011,2]
[339621081,1727757040511,-2875.0,0.00011,2]
[339621082,1727757040529,-775.5167158,0.00011,2]
[339621100,1727757043329,-549.999999,0.000109,2]
[339621102,1727757043385,-539.447999,0.000109,2]
[339621103,1727757043397,-564.74894883,0.000109,2]
[339621104,1727757043554,-247.87270597,0.000109,2]
[339621105,1727757043563,-12462.55344447,0.00011,2]
[339621106,1727757043614,-832.28687525,0.00011,2]
[339621107,1727757043626,-874.54195962,0.00011,2]
[339621109,1727757046238,-417.47216,0.00011,2]
[339621110,1727757046251,-172071.2994866,0.00011,2]
[339621111,1727757046261,-475092.26017997,0.00011,2]
[339621112,1727757046271,-1858.57567749,0.00011,2]
[339621113,1727757046282,-1102.43613394,0.00011,2]
[339621114,1727757046293,-4703.51754509,0.00011,2]
[339621115,1727757048659,-3392.18267919,0.00011,2]
[339621116,1727757048671,-281.00881241,0.00011,2]
[339621117,1727757048682,-2859.89930432,0.00011,2]
[339621118,1727757048693,-4960.51153717,0.00011,2]
[339621119,1727757048704,-7818.3596,0.00011,2]
[339621120,1727757048715,-520.38152683,0.00011,2]
[339621121,1727757048725,-1276.96962598,0.00011,2]
[339621122,1727757048738,-274233.02257978,0.00011,2]
[339621123,1727757048749,-277.72958304,0.00011,2]
[339621124,1727757048761,-14739.47726079,0.00011,2]
[339621125,1727757048772,-12350.31781265,0.00011,2]
[339621126,1727757048783,-367.46817022,0.00011,2]
[339621127,1727757048794,-1225.48002,0.00011,2]
[339621128,1727757048805,-1698.87654714,0.00011,2]
[339621129,1727757048817,-3795.64476265,0.00011,2]
[339621130,1727757048828,-273.72011597,0.00011,2]
[339621131,1727757048839,-612.67,0.00011,2]
[339621133,1727757120769,900.0,8.972e-05,2]
[339621134,1727757158221,375.05,9.589e-05,2]
[339621135,1727757165153,168.4,8.263e-05,2]
[339621136,1727757381680,1100.0,8.972e-05,2]
[339621137,1727757422792,1662.28,8.219e-05,2]
[339621138,1727757457394,2682.05,0.0001,2]
[339621139,1727757480469,2279.97,9.85e-05,2]
[339621140,1727757481625,200.0,0.0001,2]
[339621141,1727757483971,593.38,9.85e-05,2]
[339621142,1727757544766,194.34,9.847e-05,2]
[339621143,1727757648993,686.23,9.847e-05,2]
[339621144,1727757719546,312.54,9.589e-05,2]
[339621145,1727757740031,500.0,9.85e-05,2]
[339621146,1727757766749,250.0,9.847e-05,2]
[339621147,1727757767961,250.0,9.847e-05,2]
[339621148,1727757826918,1386.31,9.85e-05,2]
[339621149,1727757867042,23900.0,9.85e-05,2]
[339621150,1727757902618,150.0,9.888e-05,2]
[339621151,1727757918144,600.0,9.844e-05,2]
[339621152,1727757927158,4409.5086,9.914e-05,2]
[339621153,1727757942081,638.93,0.0001,2]
[339621154,1727757979643,404.85,9.852e-05,2]
[339621155,1727758064474,900.0,0.0001,120]
[339621156,1727758085325,1579.16,8.219e-05,2]
[339621157,1727758124761,173.16,9.838e-05,2]
[339621158,1727758212070,343.11,9.843e-05,2]
[339621163,1727758231479,-1289.67957584,0.00010014,2]
[339621164,1727758231490,-13494.77312416,0.00010014,2]
[339621165,1727758231502,-200.0,0.0001005,2]
[339621166,1727758231512,-163.35,0.00010114,2]
[339621167,1727758231521,-400.0,0.00010141,2]
[339621168,1727758231531,-150.0,0.00010162,2]
[339621169,1727758231542,-2469.0,0.00010191,2]
[339621170,1727758231554,-900.0,0.00010342,2]
[339621171,1727758231564,-1100.0,0.00010342,2]
[339621172,1727758231573,-150.0,0.00010437,2]
[339621173,1727758231583,-1579.16,0.00010468,2]
[339621174,1727758231592,-499.99,0.00010468,2]
[339621175,1727758231602,-150.0,0.00010712,2]
[339621176,1727758231611,-150.0,0.00010726,2]
[339621177,1727758231620,-150.0,0.00010729,2]
[339621178,1727758231629,-150.0,0.00010733,2]
[339621179,1727758231639,-150.0,0.00010734,2]
[339621180,1727758231648,-150.0,0.00010735,2]
[339621181,1727758231657,-150.0,0.0001074,2]
[339621182,1727758231666,-150.0,0.0001075,2]
[339621183,1727758231675,-150.0,0.00010752,2]
[339621184,1727758231684,-150.0,0.00010753,2]
[339621185,1727758231692,-150.0,0.00010753,2]
[339621186,1727758231702,-150.0,0.00010754,2]
[339621187,1727758231711,-150.0,0.00010755,2]
[339621189,1727758231720,-150.0,0.00010755,2]
[339621191,1727758231730,-150.0,0.00010758,2]
[339621193,1727758231740,-150.0,0.00010758,2]
[339621194,1727758231750,-150.0,0.0001076,2]
[339621195,1727758231759,-150.0,0.00010761,2]
[339621197,1727758231768,-150.0,0.00010765,2]
[339621198,1727758231779,-150.0,0.00010765,2]
[339621199,1727758231789,-150.0,0.00010776,2]
[339621200,1727758231798,-150.0,0.00010777,2]
[339621201,1727758231809,-150.0,0.00010784,2]
[339621202,1727758231818,-150.0,0.00010784,2]
[339621203,1727758231827,-150.0,0.00010785,2]
[339621204,1727758231838,-150.0,0.00010786,2]
[339621205,1727758231848,-150.0,0.00010788,2]
[339621206,1727758231857,-150.0,0.00010791,2]
[339621207,1727758231866,-150.0,0.00010795,2]
[339621208,1727758231877,-150.0,0.00010795,2]
[339621209,1727758231886,-150.0,0.00010797,2]
[339621210,1727758231895,-150.0,0.00010798,2]
[339621211,1727758231904,-150.0,0.00010798,2]
[339621212,1727758231913,-150.0,0.000108,2]
[339621213,1727758231922,-150.0,0.00010804,2]
[339621214,1727758231931,-150.0,0.00010805,2]
[339621215,1727758231940,-150.0,0.00010808,2]
[339621216,1727758231949,-150.0,0.00010808,2]
[339621217,1727758231959,-150.0,0.00010809,2]
[339621218,1727758231969,-150.0,0.0001081,2]
[339621219,1727758231979,-150.0,0.00010812,2]
[339621220,1727758231989,-150.0,0.00010814,2]
[339621221,1727758231999,-150.0,0.00010815,2]
[339621222,1727758232009,-150.0,0.00010818,2]
[339621223,1727758232018,-150.0,0.00010818,2]
[339621224,1727758232028,-150.0,0.00010819,2]
[339621225,1727758232038,-150.0,0.0001082,2]
[339621226,1727758232047,-150.0,0.00010822,2]
[339621227,1727758232056,-150.0,0.00010824,2]
[339621228,1727758232066,-150.0,0.00010831,2]
[339621229,1727758232075,-150.0,0.00010832,2]
[339621230,1727758232086,-151.17342461,0.00010833,2]
[339621231,1727758232096,-537.19160025,0.00010835,2]
[339621232,1727758232106,-150.0,0.00010839,2]
[339621233,1727758232116,-150.0,0.00010839,2]
[339621234,1727758232125,-150.0,0.00010841,2]
[339621235,1727758232135,-150.0,0.00010849,2]
[339621236,1727758232144,-150.0,0.00010849,2]
[339621237,1727758232153,-150.0,0.00010849,2]
[339621238,1727758232162,-150.0,0.00010851,2]
[339621239,1727758232172,-150.0,0.00010852,2]
[339621240,1727758232181,-150.0,0.00010853,2]
[339621241,1727758232191,-150.0,0.00010854,2]
[339621242,1727758232200,-150.0,0.00010854,2]
[339621243,1727758232210,-1500.0,0.00010858,2]
[339621244,1727758232219,-150.0,0.00010859,2]
[339621245,1727758232229,-150.0,0.00010863,2]
[339621246,1727758232238,-150.0,0.00010865,2]
[339621247,1727758232248,-3805.1084,0.0001087,2]
[339621248,1727758232257,-150.0,0.00010872,2]
[339621249,1727758232267,-150.0,0.00010875,2]
[339621250,1727758232277,-150.0,0.00010876,2]
[339621251,1727758232286,-150.0,0.00010876,2]
[339621252,1727758232295,-150.0,0.00010877,2]
[339621253,1727758232305,-150.0,0.00010881,2]
[339621254,1727758232314,-150.0,0.00010884,2]
[339621255,1727758232324,-150.0,0.00010884,2]
[339621256,1727758232333,-150.0,0.00010884,2]
[339621257,1727758232343,-150.0,0.00010885,2]
[339621258,1727758232352,-150.0,0.00010888,2]
[339621259,1727758232362,-150.0,0.00010889,2]
[339621260,1727758232371,-150.0,0.0001089,2]
[339621261,1727758232380,-150.0,0.00010892,2]
[339621262,1727758232390,-3032.2513,0.000109,2]
[339621263,1727758232400,-261.8982,0.000109,2]
[339621264,1727758232409,-634.37410072,0.000109,2]
[339621265,1727758232419,-4884.3119,0.000109,2]
[339621266,1727758232428,-384.833,0.000109,2]
[339621267,1727758232438,-771.1705,0.000109,2]
[339621268,1727758232447,-8814.66812368,0.000109,2]
[339621269,1727758232456,-1101.9901648,0.000109,2]
[339621270,1727758232468,-184.21864184,0.000109,2]
[339621271,1727758232478,-3559.77008661,0.000109,2]
[339621272,1727758232487,-261.97009582,0.000109,2]
[339621273,1727758232497,-150.0,0.00010902,2]
[339621274,1727758232507,-1500.0,0.00010905,2]
[339621275,1727758232516,-150.0,0.00010906,2]
[339621276,1727758232526,-150.0,0.00010907,2]
[339621277,1727758232537,-150.0,0.00010908,2]
[339621278,1727758232548,-150.0,0.00010909,2]
[339621279,1727758232557,-500.0,0.00010912,2]
[339621280,1727758232568,-150.0,0.00010914,2]
[339621281,1727758232577,-150.0,0.0001092,2]
[339621282,1727758232586,-150.0,0.00010921,2]
[339621283,1727758232596,-150.0,0.00010936,2]
[339621284,1727758232605,-150.0,0.00010939,2]
[339621285,1727758232616,-150.0,0.0001094,2]
[339621286,1727758232625,-150.0,0.0001094,2]
[339621287,1727758232636,-150.0,0.00010951,2]
[339621288,1727758232645,-150.0,0.00010956,2]
[339621289,1727758232654,-150.0,0.00010956,2]
[339621290,1727758232664,-172.1,0.00010959,2]
[339621291,1727758232673,-250.0,0.00010959,2]
[339621292,1727758232682,-150.0,0.0001096,2]
[339621293,1727758232692,-150.0,0.00010968,2]
[339621294,1727758232701,-150.0,0.00010971,2]
[339621295,1727758232710,-500.89029009,0.00010973,2]
[339621296,1727758232719,-500.0,0.00010973,2]
[339621297,1727758232729,-535.0,0.0001098,2]
[339621298,1727758232738,-150.0,0.00010982,2]
[339621299,1727758232749,-150.0,0.00010986,2]
[339621300,1727758232758,-184.54415172,0.00010986,2]
[339621301,1727758232767,-150.0,0.00010988,2]
[339621302,1727758232777,-150.0,0.00010988,2]
[339621303,1727758232786,-154.02,0.0001099,2]
[339621304,1727758232795,-150.0,0.00010997,2]
[339621305,1727758232804,-383.2843056,0.00010998,2]
[339621306,1727758232813,-3108.54514125,0.00010999,2]
[339621307,1727758232822,-190.17422917,0.00010999,2]
[339621308,1727758232831,-69953.45358911,0.00011,2]
[339621309,1727758232985,-5707.72835761,0.00011,2]
[339621310,1727758232997,-925.1775,0.00011,2]
[339621314,1727758237582,-82902.4570266,0.00011,2]
[339621315,1727758237693,-297.23411,0.00011,2]
[339621316,1727758237705,-782.53154917,0.00011,2]
[339621317,1727758237715,-276.73994888,0.00011,2]
[339621318,1727758237749,-147473.61169536,0.00011,2]
[339621319,1727758237760,-1072285.33105136,0.00011,2]
[339621321,1727758239517,-204678.08148402,0.00011,2]
[339621322,1727758239527,-692339.79495918,0.00011,2]
[339621323,1727758239536,-1232950.10531675,0.00011,2]
[339621324,1727758239547,-200.0,0.00011,2]
[339621325,1727758239556,-495.5,0.00011,2]
[339621326,1727758239566,-5909.9929624,0.00011067,2]
[339621327,1727758239575,-600.0,0.00011075,2]
[339621328,1727758239584,-200.0,0.0001111,2]
[339621329,1727758239594,-8814.66812359,0.00011111,2]
[339621330,1727758239603,-310.43931135,0.0001115,2]
[339621331,1727758239613,-1101.99016479,0.00011171,2]
[339621332,1727758239622,-227.0,0.000112,2]
[339621333,1727758239632,-200.0,0.00011221,2]
[339621334,1727758239641,-8814.66812359,0.00011322,2]
[339621335,1727758239651,-200.0,0.00011333,2]
[339621336,1727758239661,-634.37410072,0.00011375,2]
[339621337,1727758239670,-400.0,0.00011408,2]
[339621338,1727758239680,-1101.99016479,0.00011443,2]
[339621339,1727758239689,-413.65,0.00011453,2]
[339621340,1727758239698,-173.16,0.00011477,2]